[Event "Early-Titled-Tuesday-Blitz-May-07-2024"]
[Site "Chess.com"]
[Date "2024.05.07"]
[Round "11"]
[White "jinbojinbo"]
[Black "WhiteKnight2612"]
[Result "0-1"]
[WhiteElo "2648"]
[BlackElo "2843"]
[TimeControl "180+1"]
[EndTime "10:12:25 PDT"]
[Termination "WhiteKnight2612 won by resignation"]

1. e4 {[%clk 0:03:00.9]} 1... c5 {[%clk 0:02:59.9]} 2. Nf3 {[%clk 0:03:00.3]}
2... Nc6 {[%clk 0:03:00]} 3. d4 {[%clk 0:03:00.1]} 3... cxd4 {[%clk 0:03:00.3]}
4. Nxd4 {[%clk 0:03:01]} 4... e5 {[%clk 0:03:00.5]} 5. Nb5 {[%clk 0:02:59.8]}
5... Nf6 {[%clk 0:03:00.8]} 6. N1c3 {[%clk 0:02:49.8]} 6... a6 {[%clk
0:03:00.7]} 7. Nd6+ {[%clk 0:02:45.1]} 7... Bxd6 {[%clk 0:03:01.2]} 8. Qxd6
{[%clk 0:02:45.5]} 8... h6 {[%clk 0:02:59.2]} 9. Be3 {[%clk 0:02:40.4]} 9... Qe7
{[%clk 0:02:57.3]} 10. Qxe7+ {[%clk 0:02:37.9]} 10... Kxe7 {[%clk 0:02:58.2]}
11. f3 {[%clk 0:02:36.7]} 11... d6 {[%clk 0:02:58.5]} 12. O-O-O {[%clk
0:02:36.3]} 12... Be6 {[%clk 0:02:58.9]} 13. Be2 {[%clk 0:02:36.3]} 13... Rhd8
{[%clk 0:02:58.8]} 14. Rd2 {[%clk 0:02:33.6]} 14... Rac8 {[%clk 0:02:56]} 15.
Rhd1 {[%clk 0:02:32.9]} 15... b5 {[%clk 0:02:55.4]} 16. Kb1 {[%clk 0:02:29.4]}
16... Rd7 {[%clk 0:02:50.2]} 17. a4 {[%clk 0:02:09.3]} 17... b4 {[%clk
0:02:14.2]} 18. Nd5+ {[%clk 0:02:09.4]} 18... Bxd5 {[%clk 0:02:14.5]} 19. exd5
{[%clk 0:02:10.3]} 19... Nb8 {[%clk 0:02:15.2]} 20. a5 {[%clk 0:02:05.8]} 20...
Rb7 {[%clk 0:02:13.4]} 21. Bf1 {[%clk 0:01:31.5]} 21... Nfd7 {[%clk 0:02:10.1]}
22. g4 {[%clk 0:01:29.8]} 22... Nc5 {[%clk 0:02:09.7]} 23. b3 {[%clk 0:01:27.6]}
23... Nbd7 {[%clk 0:02:08.1]} 24. Kb2 {[%clk 0:01:27.1]} 24... Rf8 {[%clk
0:02:06.4]} 25. h4 {[%clk 0:01:23.5]} 25... f5 {[%clk 0:02:06.6]} 26. g5 {[%clk
0:01:22.1]} 26... f4 {[%clk 0:02:06.5]} 27. Bf2 {[%clk 0:01:21.6]} 27... hxg5
{[%clk 0:02:05.9]} 28. hxg5 {[%clk 0:01:20.7]} 28... Rh8 {[%clk 0:02:06.5]} 29.
Bc4 {[%clk 0:01:20.4]} 29... Rh3 {[%clk 0:02:05]} 30. Be2 {[%clk 0:01:15.7]}
30... Rb8 {[%clk 0:02:04.6]} 31. Re1 {[%clk 0:01:12.5]} 31... Rbh8 {[%clk
0:02:03.6]} 32. Bg1 {[%clk 0:01:11.5]} 32... Rg3 {[%clk 0:02:03.1]} 33. c3
{[%clk 0:00:53.8]} 33... Rb8 {[%clk 0:02:01.6]} 34. Rc1 {[%clk 0:00:43.2]} 34...
bxc3+ {[%clk 0:01:59.1]} 35. Kxc3 {[%clk 0:00:43.4]} 35... Nxb3 {[%clk
0:01:56.5]} 36. Rb1 {[%clk 0:00:39.8]} 36... Nxd2 {[%clk 0:01:56.3]} 37. Rxb8
{[%clk 0:00:39.1]} 37... Nxb8 {[%clk 0:01:55.9]} 0-1

[Event "Early-Titled-Tuesday-Blitz-May-07-2024"]
[Site "Chess.com"]
[Date "2024.05.07"]
[Round "11"]
[White "Payyappat"]
[Black "Yerkinio"]
[Result "0-1"]
[WhiteElo "2518"]
[BlackElo "2672"]
[TimeControl "180+1"]
[EndTime "10:12:26 PDT"]
[Termination "Yerkinio won by resignation"]

1. e4 {[%clk 0:03:00.9]} 1... c5 {[%clk 0:02:59.7]} 2. Nf3 {[%clk 0:03:00.3]}
2... d6 {[%clk 0:03:00.3]} 3. d4 {[%clk 0:02:59.9]} 3... cxd4 {[%clk 0:03:01.2]}
4. Nxd4 {[%clk 0:03:00.8]} 4... Nf6 {[%clk 0:03:01.6]} 5. Nc3 {[%clk 0:03:00.1]}
5... a6 {[%clk 0:03:02.1]} 6. h4 {[%clk 0:02:59.3]} 6... e5 {[%clk 0:03:00.6]}
7. Nb3 {[%clk 0:02:58.7]} 7... Be6 {[%clk 0:02:57.3]} 8. f4 {[%clk 0:02:57]}
8... exf4 {[%clk 0:02:53.6]} 9. Bxf4 {[%clk 0:02:57.9]} 9... Nc6 {[%clk
0:02:53.2]} 10. Qd2 {[%clk 0:02:57.2]} 10... Be7 {[%clk 0:02:49.7]} 11. O-O-O
{[%clk 0:02:55.7]} 11... Ne5 {[%clk 0:02:49.9]} 12. Qe3 {[%clk 0:02:49.4]} 12...
Qc7 {[%clk 0:02:46]} 13. Be2 {[%clk 0:02:42.3]} 13... Rc8 {[%clk 0:02:41.8]} 14.
Qg3 {[%clk 0:02:40]} 14... Nxe4 {[%clk 0:02:31.5]} 15. Qxg7 {[%clk 0:02:34.6]}
15... Bf6 {[%clk 0:02:29.5]} 16. Qh6 {[%clk 0:02:32.6]} 16... Nxc3 {[%clk
0:02:20.6]} 17. Qxf6 {[%clk 0:02:22.2]} 17... Nxe2+ {[%clk 0:01:46.4]} 18. Kb1
{[%clk 0:02:21.2]} 18... Rg8 {[%clk 0:01:36.2]} 19. Rhe1 {[%clk 0:01:56.3]}
19... Nxf4 {[%clk 0:01:12.8]} 20. Qxf4 {[%clk 0:01:53]} 20... Qxc2+ {[%clk
0:01:13.4]} 21. Ka1 {[%clk 0:01:52.9]} 21... Rxg2 {[%clk 0:01:13.9]} 22. Qd4
{[%clk 0:01:45.4]} 22... Rc4 {[%clk 0:01:07.9]} 23. Rc1 {[%clk 0:01:30]} 23...
Qxb3 {[%clk 0:00:48.4]} 24. Rxc4 {[%clk 0:01:11.8]} 24... Qxc4 {[%clk
0:00:43.8]} 0-1

[Event "Early-Titled-Tuesday-Blitz-May-07-2024"]
[Site "Chess.com"]
[Date "2024.05.07"]
[Round "11"]
[White "Yan_Dyomin2010"]
[Black "ATM622"]
[Result "1-0"]
[WhiteElo "2613"]
[BlackElo "2521"]
[TimeControl "180+1"]
[EndTime "10:12:40 PDT"]
[Termination "Yan_Dyomin2010 won by resignation"]

1. e4 {[%clk 0:03:00.9]} 1... c6 {[%clk 0:02:57.1]} 2. d4 {[%clk 0:03:01.1]}
2... d5 {[%clk 0:02:56.3]} 3. e5 {[%clk 0:03:01.6]} 3... Bf5 {[%clk 0:02:55.2]}
4. h4 {[%clk 0:03:02]} 4... h5 {[%clk 0:02:55.2]} 5. Bd3 {[%clk 0:03:00.8]} 5...
Bxd3 {[%clk 0:02:55.3]} 6. Qxd3 {[%clk 0:03:01.7]} 6... e6 {[%clk 0:02:55.6]} 7.
Bg5 {[%clk 0:02:56.7]} 7... Be7 {[%clk 0:02:53.4]} 8. Nf3 {[%clk 0:02:54.7]}
8... Na6 {[%clk 0:02:52.8]} 9. Nbd2 {[%clk 0:02:53.4]} 9... Nb4 {[%clk
0:02:39.6]} 10. Qb3 {[%clk 0:02:52.6]} 10... a5 {[%clk 0:02:37.5]} 11. a4 {[%clk
0:02:46.7]} 11... b5 {[%clk 0:02:27.9]} 12. c3 {[%clk 0:02:38.6]} 12... Na6
{[%clk 0:02:20.1]} 13. axb5 {[%clk 0:02:37.9]} 13... Rb8 {[%clk 0:02:20.4]} 14.
Qa4 {[%clk 0:02:35]} 14... Rxb5 {[%clk 0:02:19.8]} 15. b4 {[%clk 0:02:35.4]}
15... Bxg5 {[%clk 0:02:00.1]} 16. hxg5 {[%clk 0:02:36.3]} 16... Ne7 {[%clk
0:01:52.3]} 17. Nb3 {[%clk 0:02:32.1]} 17... Nxb4 {[%clk 0:01:00.5]} 18. cxb4
{[%clk 0:02:28.3]} 18... Rxb4 {[%clk 0:01:00.7]} 19. Qa3 {[%clk 0:02:20.5]}
19... Qb6 {[%clk 0:01:00.5]} 20. Nbd2 {[%clk 0:02:11.3]} 20... a4 {[%clk
0:00:55.2]} 21. O-O {[%clk 0:02:08.4]} 21... Nf5 {[%clk 0:00:41.1]} 22. Rfb1
{[%clk 0:02:07]} 22... Rxb1+ {[%clk 0:00:33.4]} 23. Rxb1 {[%clk 0:02:07.9]}
23... Qa7 {[%clk 0:00:30.9]} 24. Nf1 {[%clk 0:02:01.3]} 24... Ne7 {[%clk
0:00:23]} 25. Rb4 {[%clk 0:02:00.5]} 25... O-O {[%clk 0:00:22.5]} 26. Rxa4
{[%clk 0:02:01]} 26... Qb8 {[%clk 0:00:05.8]} 27. Qxe7 {[%clk 0:02:00.1]} 27...
Qb3 {[%clk 0:00:01.7]} 28. Ra7 {[%clk 0:01:59.5]} 28... Qc2 {[%clk 0:00:01.7]}
29. Ne3 {[%clk 0:01:58.1]} 29... Qb1+ {[%clk 0:00:01.5]} 30. Kh2 {[%clk
0:01:58.4]} 30... h4 {[%clk 0:00:01.6]} 31. Nxh4 {[%clk 0:01:56.2]} 31... Qh7
{[%clk 0:00:01.3]} 32. g6 {[%clk 0:01:56.6]} 32... Qxh4+ {[%clk 0:00:01.5]} 33.
Qxh4 {[%clk 0:01:55.8]} 1-0

[Event "Early-Titled-Tuesday-Blitz-May-07-2024"]
[Site "Chess.com"]
[Date "2024.05.07"]
[Round "11"]
[White "VD_coach"]
[Black "JeFumeDesClopes"]
[Result "0-1"]
[WhiteElo "2590"]
[BlackElo "2720"]
[TimeControl "180+1"]
[EndTime "10:12:43 PDT"]
[Termination "JeFumeDesClopes won by resignation"]

1. d4 {[%clk 0:01:00.5]} 1... g6 {[%clk 0:02:28.6]} 2. Nf3 {[%clk 0:01:01.4]}
2... Bg7 {[%clk 0:02:28.7]} 3. g3 {[%clk 0:01:01.1]} 3... d6 {[%clk 0:02:29.1]}
4. Bg2 {[%clk 0:01:01.4]} 4... Nf6 {[%clk 0:02:29.8]} 5. O-O {[%clk 0:01:01.8]}
5... O-O {[%clk 0:02:30.5]} 6. c4 {[%clk 0:01:02.4]} 6... Nc6 {[%clk 0:02:30.2]}
7. Nc3 {[%clk 0:01:02.6]} 7... a6 {[%clk 0:02:30.7]} 8. h3 {[%clk 0:01:03]} 8...
Rb8 {[%clk 0:02:30.8]} 9. Be3 {[%clk 0:01:03.5]} 9... b5 {[%clk 0:02:30.7]} 10.
c5 {[%clk 0:01:04]} 10... b4 {[%clk 0:02:28.5]} 11. Na4 {[%clk 0:01:03.5]} 11...
Bf5 {[%clk 0:02:25.2]} 12. Rc1 {[%clk 0:01:03]} 12... Qd7 {[%clk 0:02:24.2]} 13.
d5 {[%clk 0:01:01.5]} 13... Na5 {[%clk 0:02:16.1]} 14. Nd4 {[%clk 0:01:00.7]}
14... Bxh3 {[%clk 0:02:13.6]} 15. c6 {[%clk 0:01:01]} 15... Qc8 {[%clk
0:02:13.6]} 16. Qd3 {[%clk 0:00:54.6]} 16... Bxg2 {[%clk 0:02:12.7]} 17. Kxg2
{[%clk 0:00:55.5]} 17... Nxd5 {[%clk 0:02:13.1]} 18. Nb3 {[%clk 0:00:51.1]}
18... Nxe3+ {[%clk 0:02:13.1]} 19. Qxe3 {[%clk 0:00:49.6]} 19... Nxb3 {[%clk
0:02:11.5]} 20. axb3 {[%clk 0:00:49.5]} 20... e6 {[%clk 0:02:06.7]} 21. Rh1
{[%clk 0:00:49.4]} 21... Rb5 {[%clk 0:02:03.4]} 22. Rc4 {[%clk 0:00:35.7]} 22...
Qe8 {[%clk 0:01:51.9]} 23. Rch4 {[%clk 0:00:35.8]} 23... Qxc6+ {[%clk
0:01:51.3]} 24. f3 {[%clk 0:00:35.3]} 24... Re5 {[%clk 0:01:46.5]} 25. Qd2
{[%clk 0:00:29.9]} 25... h5 {[%clk 0:01:36.3]} 26. g4 {[%clk 0:00:29.4]} 26...
Qb5 {[%clk 0:01:29.4]} 27. e4 {[%clk 0:00:27.3]} 27... Rg5 {[%clk 0:01:24.4]}
0-1

[Event "Early-Titled-Tuesday-Blitz-May-07-2024"]
[Site "Chess.com"]
[Date "2024.05.07"]
[Round "11"]
[White "Chernov_Alexander_A"]
[Black "AccioChess"]
[Result "1/2-1/2"]
[WhiteElo "2271"]
[BlackElo "2427"]
[TimeControl "180+1"]
[EndTime "10:12:51 PDT"]
[Termination "Game drawn by agreement"]

1. d4 {[%clk 0:03:00.9]} 1... Nf6 {[%clk 0:02:56.2]} 2. Nc3 {[%clk 0:03:00]}
2... d5 {[%clk 0:02:51.5]} 3. Bg5 {[%clk 0:02:59.3]} 3... c6 {[%clk 0:02:45.1]}
4. e3 {[%clk 0:02:58.5]} 4... Nbd7 {[%clk 0:02:43.6]} 5. Nf3 {[%clk 0:02:57.4]}
5... Ne4 {[%clk 0:02:41]} 6. Nxe4 {[%clk 0:02:55.7]} 6... dxe4 {[%clk
0:02:41.9]} 7. Nd2 {[%clk 0:02:55.6]} 7... Qa5 {[%clk 0:02:33.4]} 8. Bh4 {[%clk
0:02:51.4]} 8... e5 {[%clk 0:02:33.1]} 9. c3 {[%clk 0:02:44.5]} 9... exd4 {[%clk
0:02:25.9]} 10. exd4 {[%clk 0:02:44.5]} 10... Qf5 {[%clk 0:02:22.7]} 11. Qe2
{[%clk 0:02:35.3]} 11... Nf6 {[%clk 0:02:17.7]} 12. Bxf6 {[%clk 0:02:33.5]}
12... Qxf6 {[%clk 0:02:18.6]} 13. Nxe4 {[%clk 0:02:32.7]} 13... Qe6 {[%clk
0:02:17.8]} 14. Qe3 {[%clk 0:02:27.1]} 14... Be7 {[%clk 0:02:17.5]} 15. Bc4
{[%clk 0:02:24.7]} 15... Qg6 {[%clk 0:02:15.2]} 16. O-O {[%clk 0:02:16.1]} 16...
O-O {[%clk 0:02:14.8]} 17. Rfe1 {[%clk 0:02:11.7]} 17... Bf5 {[%clk 0:02:07.1]}
18. Ng3 {[%clk 0:02:07.4]} 18... Bg5 {[%clk 0:02:06.2]} 19. Qf3 {[%clk
0:02:02.5]} 19... Bc2 {[%clk 0:02:01.9]} 20. Ne4 {[%clk 0:01:26]} 20... Bxe4
{[%clk 0:01:56.6]} 21. Qxe4 {[%clk 0:01:24.8]} 21... Qxe4 {[%clk 0:01:56.9]} 22.
Rxe4 {[%clk 0:01:24.6]} 22... Rfe8 {[%clk 0:01:57.3]} 23. Rae1 {[%clk
0:01:23.1]} 23... Kf8 {[%clk 0:01:57.7]} 24. Rxe8+ {[%clk 0:01:21.4]} 24... Rxe8
{[%clk 0:01:58.6]} 25. Rxe8+ {[%clk 0:01:20.9]} 25... Kxe8 {[%clk 0:01:59.5]}
26. Bd3 {[%clk 0:01:12.7]} 26... Bc1 {[%clk 0:01:58]} 27. b3 {[%clk 0:01:11.4]}
27... Bb2 {[%clk 0:01:57.4]} 28. c4 {[%clk 0:00:58]} 28... Bxd4 {[%clk
0:01:57.1]} 29. Kf1 {[%clk 0:00:58.6]} 29... g6 {[%clk 0:01:57]} 30. Ke2 {[%clk
0:00:58.7]} 30... Ke7 {[%clk 0:01:57.5]} 31. f3 {[%clk 0:00:57.7]} 31... a5
{[%clk 0:01:57.4]} 32. g4 {[%clk 0:00:52.2]} 32... Kd6 {[%clk 0:01:56.7]} 33.
Be4 {[%clk 0:00:51.4]} 33... Kc5 {[%clk 0:01:54.3]} 34. Kd3 {[%clk 0:00:51.2]}
34... Be5 {[%clk 0:01:54]} 35. h4 {[%clk 0:00:50.7]} 35... Bg3 {[%clk 0:01:51]}
36. h5 {[%clk 0:00:50.6]} 36... gxh5 {[%clk 0:01:49.8]} 37. gxh5 {[%clk
0:00:50.4]} 37... h6 {[%clk 0:01:50.4]} 38. Bh7 {[%clk 0:00:48.6]} 38... Kb4
{[%clk 0:01:46.7]} 39. Kc2 {[%clk 0:00:46]} 39... Ka3 {[%clk 0:01:44.6]} 40. Kb1
{[%clk 0:00:45.2]} 40... a4 {[%clk 0:01:41.2]} 41. bxa4 {[%clk 0:00:44.2]} 41...
Kxa4 {[%clk 0:01:40.7]} 42. Bg8 {[%clk 0:00:42.4]} 42... f6 {[%clk 0:01:40.2]}
43. Kc2 {[%clk 0:00:40.4]} 43... Kb4 {[%clk 0:01:39.3]} 44. Bf7 {[%clk 0:00:38]}
1/2-1/2

[Event "Early-Titled-Tuesday-Blitz-May-07-2024"]
[Site "Chess.com"]
[Date "2024.05.07"]
[Round "11"]
[White "Mikhail_Bryakin"]
[Black "Oleksandr_Bortnyk"]
[Result "0-1"]
[WhiteElo "2893"]
[BlackElo "3059"]
[TimeControl "180+1"]
[EndTime "10:12:54 PDT"]
[Termination "Oleksandr_Bortnyk won by resignation"]

1. c4 {[%clk 0:02:59]} 1... Nf6 {[%clk 0:02:58.1]} 2. Nf3 {[%clk 0:02:57.4]}
2... b6 {[%clk 0:02:58.3]} 3. g3 {[%clk 0:02:56.7]} 3... Bb7 {[%clk 0:02:59.2]}
4. Bg2 {[%clk 0:02:57.2]} 4... g6 {[%clk 0:02:59.9]} 5. O-O {[%clk 0:02:57.5]}
5... Bg7 {[%clk 0:03:00.7]} 6. Nc3 {[%clk 0:02:56.4]} 6... O-O {[%clk 0:03:01]}
7. d4 {[%clk 0:02:52.7]} 7... Ne4 {[%clk 0:03:01.1]} 8. Bd2 {[%clk 0:02:51.8]}
8... Re8 {[%clk 0:03:00.7]} 9. Nxe4 {[%clk 0:02:51.1]} 9... Bxe4 {[%clk
0:03:01.6]} 10. Bc3 {[%clk 0:02:51.7]} 10... d5 {[%clk 0:03:01.5]} 11. Qb3
{[%clk 0:02:41.6]} 11... Nc6 {[%clk 0:02:59.9]} 12. Rfd1 {[%clk 0:02:39.8]}
12... a5 {[%clk 0:02:59.2]} 13. a4 {[%clk 0:02:34.6]} 13... e6 {[%clk
0:02:54.3]} 14. Ne1 {[%clk 0:02:25.2]} 14... Bxg2 {[%clk 0:02:49.2]} 15. Nxg2
{[%clk 0:02:26.1]} 15... dxc4 {[%clk 0:02:47.4]} 16. Qxc4 {[%clk 0:02:26.2]}
16... Qd5 {[%clk 0:02:48.3]} 17. Qxd5 {[%clk 0:02:18.8]} 17... exd5 {[%clk
0:02:49.2]} 18. e3 {[%clk 0:02:19.6]} 18... Ne7 {[%clk 0:02:33.5]} 19. h4 {[%clk
0:02:18.3]} 19... Nf5 {[%clk 0:02:32.4]} 20. Rac1 {[%clk 0:02:17]} 20... Nd6
{[%clk 0:02:31.4]} 21. b3 {[%clk 0:02:17]} 21... Ne4 {[%clk 0:02:28.6]} 22. Be1
{[%clk 0:02:05.7]} 22... c5 {[%clk 0:02:27.9]} 23. Nf4 {[%clk 0:02:02.3]} 23...
cxd4 {[%clk 0:02:24.1]} 24. Nxd5 {[%clk 0:01:55.3]} 24... dxe3 {[%clk
0:02:13.4]} 25. Nxb6 {[%clk 0:01:24.8]} 25... Rab8 {[%clk 0:02:06.6]} 26. Rc6
{[%clk 0:01:14.4]} 26... e2 {[%clk 0:02:04.1]} 27. Rd3 {[%clk 0:00:46.1]} 27...
Bc3 {[%clk 0:01:29.2]} 28. Rcxc3 {[%clk 0:00:35.6]} 28... Nxc3 {[%clk
0:01:30.1]} 29. Nd7 {[%clk 0:00:36]} 29... Rxb3 {[%clk 0:01:29.1]} 30. Nf6+
{[%clk 0:00:31]} 30... Kf8 {[%clk 0:01:29.3]} 31. Nxe8 {[%clk 0:00:18.2]} 31...
Rb1 {[%clk 0:01:29.1]} 32. Kg2 {[%clk 0:00:10.3]} 32... Rxe1 {[%clk 0:01:28.8]}
33. Rxc3 {[%clk 0:00:11]} 33... Rg1+ {[%clk 0:01:28.7]} 0-1

[Event "Early-Titled-Tuesday-Blitz-May-07-2024"]
[Site "Chess.com"]
[Date "2024.05.07"]
[Round "11"]
[White "ChelsieMonica"]
[Black "talaicito"]
[Result "0-1"]
[WhiteElo "2505"]
[BlackElo "2390"]
[TimeControl "180+1"]
[EndTime "10:12:57 PDT"]
[Termination "talaicito won by resignation"]

1. c4 {[%clk 0:03:00.9]} 1... e5 {[%clk 0:02:59]} 2. g3 {[%clk 0:03:01.3]} 2...
d6 {[%clk 0:02:59.3]} 3. Bg2 {[%clk 0:03:01.7]} 3... f5 {[%clk 0:02:59.9]} 4.
Nc3 {[%clk 0:03:00.7]} 4... Nf6 {[%clk 0:03:00.4]} 5. d4 {[%clk 0:03:01.1]} 5...
e4 {[%clk 0:02:59.4]} 6. d5 {[%clk 0:03:01]} 6... Be7 {[%clk 0:02:55.6]} 7. Nh3
{[%clk 0:03:00.6]} 7... O-O {[%clk 0:02:52.9]} 8. O-O {[%clk 0:03:00.1]} 8... a5
{[%clk 0:02:52.8]} 9. Nf4 {[%clk 0:03:00.3]} 9... Na6 {[%clk 0:02:53.1]} 10. Ne6
{[%clk 0:03:00.5]} 10... Bxe6 {[%clk 0:02:52.5]} 11. dxe6 {[%clk 0:03:01.4]}
11... Nc5 {[%clk 0:02:52.9]} 12. f3 {[%clk 0:03:02]} 12... exf3 {[%clk
0:02:21.6]} 13. Bxf3 {[%clk 0:03:02.9]} 13... c6 {[%clk 0:02:21]} 14. Kh1 {[%clk
0:02:45.3]} 14... Nxe6 {[%clk 0:02:19.5]} 15. e4 {[%clk 0:02:44.6]} 15... fxe4
{[%clk 0:02:12.7]} 16. Nxe4 {[%clk 0:02:45.5]} 16... Qd7 {[%clk 0:01:56.6]} 17.
Re1 {[%clk 0:02:19.4]} 17... Rae8 {[%clk 0:01:49.8]} 18. Nxf6+ {[%clk
0:01:44.6]} 18... Bxf6 {[%clk 0:01:49.3]} 19. Bg4 {[%clk 0:01:42.1]} 19... Qf7
{[%clk 0:01:25.7]} 20. Qxd6 {[%clk 0:01:34.5]} 20... Nd4 {[%clk 0:01:25.6]} 21.
Bf4 {[%clk 0:01:21.2]} 21... Qxc4 {[%clk 0:01:14.3]} 22. Bh5 {[%clk 0:00:36.2]}
22... Rd8 {[%clk 0:01:04.3]} 23. Qc7 {[%clk 0:00:29.5]} 23... Qd5+ {[%clk
0:01:01.9]} 24. Kg1 {[%clk 0:00:29.2]} 24... Qxh5 {[%clk 0:01:01.4]} 0-1

[Event "Early-Titled-Tuesday-Blitz-May-07-2024"]
[Site "Chess.com"]
[Date "2024.05.07"]
[Round "11"]
[White "NastyaHn"]
[Black "stepanosinovsky"]
[Result "1-0"]
[WhiteElo "2461"]
[BlackElo "2304"]
[TimeControl "180+1"]
[EndTime "10:13:01 PDT"]
[Termination "NastyaHn won on time"]

1. Nc3 {[%clk 0:02:59.1]} 1... Nf6 {[%clk 0:02:57.4]} 2. e4 {[%clk 0:02:58]}
2... e5 {[%clk 0:02:57.5]} 3. Nf3 {[%clk 0:02:57.8]} 3... Nc6 {[%clk 0:02:57.4]}
4. d4 {[%clk 0:02:57.7]} 4... exd4 {[%clk 0:02:56]} 5. Nxd4 {[%clk 0:02:57.3]}
5... Bb4 {[%clk 0:02:55.8]} 6. Nxc6 {[%clk 0:02:55.3]} 6... bxc6 {[%clk
0:02:55.4]} 7. Bd3 {[%clk 0:02:55.5]} 7... d5 {[%clk 0:02:54.4]} 8. Bd2 {[%clk
0:02:55.4]} 8... O-O {[%clk 0:02:46.8]} 9. O-O {[%clk 0:02:54.9]} 9... Re8
{[%clk 0:02:36.8]} 10. Re1 {[%clk 0:02:31.4]} 10... Bg4 {[%clk 0:02:16]} 11. f3
{[%clk 0:02:24.3]} 11... dxe4 {[%clk 0:02:04.6]} 12. Bxe4 {[%clk 0:01:38.4]}
12... Nxe4 {[%clk 0:00:52.9]} 13. Nxe4 {[%clk 0:01:35]} 13... Qd4+ {[%clk
0:00:16.8]} 14. Kh1 {[%clk 0:01:17]} 14... Bf5 {[%clk 0:00:08.6]} 15. c3 {[%clk
0:01:13.6]} 15... Qd3 {[%clk 0:00:04.7]} 16. cxb4 {[%clk 0:01:11.1]} 16... Rad8
{[%clk 0:00:05.2]} 17. Bc3 {[%clk 0:01:08]} 17... Qc4 {[%clk 0:00:04]} 18. Qb3
{[%clk 0:01:04.8]} 18... Qb5 {[%clk 0:00:01.2]} 19. a4 {[%clk 0:01:04]} 1-0

[Event "Early-Titled-Tuesday-Blitz-May-07-2024"]
[Site "Chess.com"]
[Date "2024.05.07"]
[Round "11"]
[White "DenisQ"]
[Black "cthulhuuu"]
[Result "1-0"]
[WhiteElo "2726"]
[BlackElo "2542"]
[TimeControl "180+1"]
[EndTime "10:13:16 PDT"]
[Termination "DenisQ won on time"]

1. Nf3 {[%clk 0:03:00.9]} 1... Nf6 {[%clk 0:02:59.7]} 2. c4 {[%clk 0:03:00.1]}
2... g6 {[%clk 0:03:00.3]} 3. b4 {[%clk 0:02:59.6]} 3... Bg7 {[%clk 0:03:01]} 4.
Bb2 {[%clk 0:02:59.9]} 4... O-O {[%clk 0:03:01.6]} 5. g3 {[%clk 0:03:00.2]} 5...
d6 {[%clk 0:03:02]} 6. Bg2 {[%clk 0:03:00.1]} 6... e5 {[%clk 0:03:02.4]} 7. O-O
{[%clk 0:03:00.1]} 7... Nbd7 {[%clk 0:03:02.9]} 8. d3 {[%clk 0:02:59.9]} 8...
Re8 {[%clk 0:03:01.3]} 9. Nbd2 {[%clk 0:02:59.6]} 9... c6 {[%clk 0:03:01.1]} 10.
Qc2 {[%clk 0:02:57.2]} 10... Nf8 {[%clk 0:02:59.4]} 11. c5 {[%clk 0:02:51]}
11... Nd5 {[%clk 0:02:52.9]} 12. a3 {[%clk 0:02:46.2]} 12... dxc5 {[%clk
0:02:50.5]} 13. bxc5 {[%clk 0:02:45.5]} 13... Qc7 {[%clk 0:02:04.8]} 14. Nc4
{[%clk 0:02:41.1]} 14... f6 {[%clk 0:01:51.5]} 15. e4 {[%clk 0:02:31.2]} 15...
Ne7 {[%clk 0:01:51.4]} 16. Nd6 {[%clk 0:02:28.3]} 16... Rd8 {[%clk 0:01:47.7]}
17. d4 {[%clk 0:02:28.2]} 17... exd4 {[%clk 0:00:14.8]} 18. Nxd4 {[%clk
0:02:26.9]} 18... Rxd6 {[%clk 0:00:07.4]} 19. cxd6 {[%clk 0:02:24.1]} 19... Qxd6
{[%clk 0:00:08.3]} 20. Rfd1 {[%clk 0:02:18.5]} 20... Qc7 {[%clk 0:00:08.5]} 21.
Nb5 {[%clk 0:02:05]} 21... Qb6 {[%clk 0:00:08.1]} 22. Nd6 {[%clk 0:02:04.8]}
22... Be6 {[%clk 0:00:08]} 23. Rab1 {[%clk 0:02:03.4]} 23... Qc7 {[%clk
0:00:03]} 24. a4 {[%clk 0:01:50.4]} 24... Rd8 {[%clk 0:00:03]} 25. Ba3 {[%clk
0:01:49.9]} 25... Qa5 {[%clk 0:00:01.6]} 26. Nxb7 {[%clk 0:01:46.5]} 26... Rxd1+
{[%clk 0:00:02]} 27. Rxd1 {[%clk 0:01:46.5]} 27... Qb6 {[%clk 0:00:02.3]} 28.
Nc5 {[%clk 0:01:19.4]} 28... Bf7 {[%clk 0:00:01.9]} 29. Bh3 {[%clk 0:01:15.9]}
1-0

[Event "Early-Titled-Tuesday-Blitz-May-07-2024"]
[Site "Chess.com"]
[Date "2024.05.07"]
[Round "11"]
[White "vanyakuba"]
[Black "BM223344"]
[Result "1-0"]
[WhiteElo "2453"]
[BlackElo "2601"]
[TimeControl "180+1"]
[EndTime "10:13:26 PDT"]
[Termination "vanyakuba won by resignation"]

1. e4 {[%clk 0:03:00.9]} 1... e6 {[%clk 0:02:58.8]} 2. d4 {[%clk 0:03:00.9]}
2... d5 {[%clk 0:02:58.3]} 3. exd5 {[%clk 0:03:01.8]} 3... exd5 {[%clk
0:02:58.1]} 4. Nf3 {[%clk 0:03:02.6]} 4... Nf6 {[%clk 0:02:58.8]} 5. c4 {[%clk
0:03:03]} 5... dxc4 {[%clk 0:02:58.7]} 6. Bxc4 {[%clk 0:03:02.9]} 6... Be7
{[%clk 0:02:58.8]} 7. O-O {[%clk 0:03:02.6]} 7... O-O {[%clk 0:02:59.7]} 8. Nc3
{[%clk 0:03:01.5]} 8... Nbd7 {[%clk 0:03:00.1]} 9. Bb3 {[%clk 0:02:58.4]} 9...
Nb6 {[%clk 0:03:00.4]} 10. Ne5 {[%clk 0:02:56.9]} 10... c6 {[%clk 0:02:59.7]}
11. Re1 {[%clk 0:02:54.1]} 11... Nfd5 {[%clk 0:02:55.1]} 12. Qf3 {[%clk
0:02:47.3]} 12... Be6 {[%clk 0:02:53.6]} 13. Bd2 {[%clk 0:02:20.6]} 13... Bd6
{[%clk 0:02:52.9]} 14. Ne4 {[%clk 0:02:09.5]} 14... Be7 {[%clk 0:02:32.8]} 15.
Rad1 {[%clk 0:02:05.6]} 15... a5 {[%clk 0:02:32.4]} 16. a3 {[%clk 0:01:59.8]}
16... a4 {[%clk 0:02:32]} 17. Ba2 {[%clk 0:01:59.7]} 17... Nc7 {[%clk
0:02:29.1]} 18. Bb1 {[%clk 0:01:55.7]} 18... Bd5 {[%clk 0:02:28.7]} 19. Qh3
{[%clk 0:01:46.3]} 19... f5 {[%clk 0:02:15.2]} 20. Nc5 {[%clk 0:01:29.5]} 20...
g6 {[%clk 0:02:10.5]} 21. Bh6 {[%clk 0:01:24.8]} 21... Re8 {[%clk 0:02:08.5]}
22. Nxb7 {[%clk 0:01:24.1]} 22... Qc8 {[%clk 0:01:58]} 23. Nc5 {[%clk 0:01:24]}
23... Bxc5 {[%clk 0:01:49.1]} 24. dxc5 {[%clk 0:01:24.9]} 24... Nd7 {[%clk
0:01:46.2]} 25. Bxf5 {[%clk 0:01:06.9]} 25... Nxe5 {[%clk 0:01:00.1]} 26. Bxc8
{[%clk 0:01:04.4]} 26... Nb5 {[%clk 0:01:00.7]} 27. Bf4 {[%clk 0:00:48.7]} 27...
Raxc8 {[%clk 0:00:54.8]} 28. Bxe5 {[%clk 0:00:48.9]} 28... Be6 {[%clk
0:00:48.7]} 29. Qh6 {[%clk 0:00:47.9]} 29... Re7 {[%clk 0:00:49.3]} 30. Qh4
{[%clk 0:00:45.3]} 30... Rf7 {[%clk 0:00:47.5]} 31. Rd8+ {[%clk 0:00:45]} 31...
Rxd8 {[%clk 0:00:47.5]} 32. Qxd8+ {[%clk 0:00:45.9]} 32... Rf8 {[%clk
0:00:48.1]} 33. Qe7 {[%clk 0:00:44.6]} 33... Bf7 {[%clk 0:00:48.7]} 34. Bd6
{[%clk 0:00:42.2]} 34... Re8 {[%clk 0:00:48.3]} 35. Qxe8+ {[%clk 0:00:42.1]}
35... Bxe8 {[%clk 0:00:49]} 36. Rxe8+ {[%clk 0:00:42.3]} 36... Kf7 {[%clk
0:00:49.9]} 37. Re7+ {[%clk 0:00:39.5]} 37... Kf6 {[%clk 0:00:50.2]} 38. Rxh7
{[%clk 0:00:39.5]} 38... Ke6 {[%clk 0:00:48.2]} 39. Rb7 {[%clk 0:00:35.6]} 39...
Nd4 {[%clk 0:00:47.9]} 40. Kf1 {[%clk 0:00:33.5]} 40... Ne2 {[%clk 0:00:48.8]}
1-0